[Event "Czech Open-GM 2022"]
[Site "Pardubice"]
[Date "2022.07.26"]
[Round "5.39"]
[White "Butkiewicz, Lukasz"]
[Black "Shatil, Shir"]
[Result "1-0"]
[ECO "A40"]
[WhiteElo "2370"]
[BlackElo "2185"]
[Annotator "TA"]
[PlyCount "99"]
[EventDate "2022.07.22"]
[EventType "swiss"]
[EventCountry "CZE"]
[SourceTitle "playchess.com"]
[Source "ChessBase"]
[SourceQuality "1"]
[TimeControl "40/5400+30:1800+30"]

{[%evp 9,99,48,45,48,81,43,43,36,53,41,47,26,71,66,64,57,56,48,50,41,102,102,97,100,105,81,89,81,81,62,62,62,64,73,60,59,69,63,72,78,179,179,229,225,304,282,272,255,328,327,372,369,366,379,346,349,513,482,1342,1324,1020,1554,1516,1342,1586,1457,1539,1505,1349,1214,1095,1037,4795,1143,3123,2726,2433,1842,5703,5703,6070,5187,29985,29986,29986,29987,29987,29988,29988,29989,29989,29990]} 1. d4 {[%emt 0:00:03]} e6 {[%emt 0:00:04]} 2. g3 {[%emt 0:00:10]} c5 {[%emt 0:01:36]} 3. Nf3 {[%emt 0:00:19]} b6 {[%emt 0:00:19]} 4. e4 {[%emt 0:12:23]} cxd4 {[%emt 0:02:56]} 5. Nxd4 {[%emt 0:00:23]} Bb7 {[%emt 0:01:38]} 6. Bg2 {[%emt 0:01:04] A43: Schmid Benoni.} Nc6 {[%emt 0:15:59]} 7. O-O {[%emt 0:04:52]} Nxd4 {[%emt 0:07:26]} 8. Qxd4 {[%emt 0:00:52] White is slightly better.} Nf6 {[%emt 0:00:57]} 9. Nc3 {[%emt 0:14:56]} Bc5 {[%emt 0:02:37]} 10. Qd1 {[%emt 0:04:24] [#]} d5 $146 {[%emt 0:12:48]} ({Predecessor:} 10... O-O 11. Kh1 Bb4 12. Bg5 Be7 13. a3 h6 14. Be3 Qc7 15. f4 Bc5 16. Bxc5 bxc5 17. g4 g5 18. fxg5 Nh7 19. gxh6 Kh8 20. Nb5 Qe5 21. Nd6 Bc6 {1-0 (21) Gucaga,A (1606)-Karpiejus,E (1442) Panevezys 2015}) 11. exd5 {[%emt 0:04:13]} Nxd5 {[%emt 0:00:35]} 12. Ne4 {[%emt 0:03:30]} Qc7 {[%emt 0:17:43]} 13. c4 {[%emt 0:08:42]} Ne7 $1 {[%emt 0:00:15]} 14. Qh5 {[%emt 0:07:20] [#] Hoping for Bf4.} Nf5 {[%emt 0:03:17]} ({Black should try} 14... Ng6 $14) 15. Bf4 $16 {[%emt 0:01:55]} Qe7 {[%emt 0:01:29]} 16. Rfe1 {[%emt 0:04:04] Black must now prevent Bg5.} Bb4 {[%emt 0:01:42]} 17. Red1 {[%emt 0:01:05] aiming for a3. White is much more active. The black rooks are badly placed.} O-O {[%emt 0:08:18]} 18. g4 {[%emt 0:04:26]} (18. Ng5 $6 h6 19. Ne4 Rad8 $11) 18... Qh4 {[%emt 0:00:36]} (18... g6 $2 19. Qh3 Bxe4 20. Bxe4 $18) 19. Qxh4 {[%emt 0:06:09]} (19. Nf6+ $6 Qxf6 20. Bxb7 Nd4 $11) 19... Nxh4 {[%emt 0:00:05] [#]} 20. Nf6+ $1 {[%emt 0:00:04]} gxf6 {[%emt 0:00:04]} 21. Bxb7 {[%emt 0:00:04]} Rad8 {[%emt 0:00:35]} 22. Bc7 {[%emt 0:02:16] A strong pair of Bishops.} Rxd1+ {[%emt 0:00:11]} 23. Rxd1 {[%emt 0:00:02]} Bc5 {[%emt 0:01:35]} 24. a3 $36 {[%emt 0:04:44][%mdl 2048] Black is under strong pressure. White now steadily converts the win.} e5 {[%emt 0:05:52]} (24... Be7 $16 {is a better defense.}) 25. Rd7 $18 {[%emt 0:00:35]} Re8 {[%emt 0:02:54]} (25... Ng6 {keeps fighting.} 26. Bd8 a5 27. Bxf6 a4) 26. Bd5 {[%emt 0:07:17]} Be7 {[%emt 0:00:13]} 27. Bd6 {[%emt 0:03:02]} Ng6 {[%emt 0:00:21]} 28. b4 {[%emt 0:00:16][%cal Bb2b4,Bb4c5,Bc5d6,Bd6d7][%mdl 32]} ({But not} 28. Rxa7 $6 Bxd6 29. Bxf7+ Kf8 $18) 28... Kg7 {[%emt 0:04:10]} 29. c5 {[%emt 0:00:41]} bxc5 {[%emt 0:00:29]} 30. bxc5 {[%emt 0:00:05]} Nf4 {[%emt 0:03:52]} 31. Bc4 {[%emt 0:01:49]} (31. Bxe7 Nxd5 32. Bd6 (32. Rxd5 Rxe7 33. c6 Re6 $16) 32... a6 $16) 31... Bxd6 {[%emt 0:01:18]} 32. cxd6 {[%emt 0:00:05][%mdl 4096] Endgame KRB-KRN} ({Not} 32. Rxf7+ Kg6 33. cxd6 Rc8 $18) 32... Ne6 {[%emt 0:01:21]} (32... Rc8 {was necessary.}) 33. Rxa7 {[%emt 0:00:49] And now d7 would win.} Kg6 {[%emt 0:01:06]} (33... Kf8 $142 34. Rd7 h6) 34. d7 {[%emt 0:01:47]} Rd8 {[%emt 0:00:19]} 35. Bxe6 {[%emt 0:00:31]} fxe6 {[%emt 0:00:02] KR-KR} 36. a4 {[%emt 0:00:05][%cal Ba3a4,Ba4a5,Ba5a6][%mdl 32]} Kf7 {[%emt 0:00:13]} 37. a5 {[%emt 0:00:05]} Ke7 {[%emt 0:00:04]} 38. a6 {[%emt 0:00:39] Strongly threatening Rb7.} Kd6 {[%emt 0:00:38]} 39. Rb7 {[%emt 0:00:08] White wants to mate with a7.} Kc6 {[%emt 0:00:27]} 40. Kf1 {[%emt 0:00:08]} h6 {[%emt 0:02:09]} 41. h4 {[%emt 0:30:44]} (41. Ke2 $142 Ra8 42. Ke3) 41... Ra8 {[%emt 0:02:30]} 42. Ke2 {[%emt 0:00:00]} Rd8 {[%emt 0:00:19]} 43. Ke3 {[%emt 0:00:00]} Rg8 {[%emt 0:00:40]} 44. f3 {[%emt 0:00:00]} f5 {[%emt 0:09:18]} 45. g5 {[%emt 0:00:00][%cal Bg4g5,Bg5g6,Bg6g7][%mdl 32]} h5 {[%emt 0:00:09]} 46. g6 {[%emt 0:00:00] White mates.} Rf8 {[%emt 0:00:57]} 47. g7 {[%emt 0:00:00]} Ra8 {[%emt 0:00:40]} 48. Rb1 {[%emt 0:00:00]} Kxd7 {[%emt 0:01:32]} 49. a7 {[%emt 0:00:00]} f4+ {[%emt 0:00:32]} 50. Ke4 {Weighted Error Value: White=0.07 (flawless) /Black=0.33} 1-0

[Event "Czech Open-GM 2022"]
[Site "Pardubice"]
[Date "2022.07.26"]
[Round "5.40"]
[White "Malek, Daniel"]
[Black "Brozka, Karel"]
[Result "1-0"]
[ECO "B01"]
[WhiteElo "2355"]
[BlackElo "2188"]
[Annotator "TA"]
[PlyCount "85"]
[EventDate "2022.07.22"]
[EventType "swiss"]
[EventCountry "CZE"]
[SourceTitle "playchess.com"]
[Source "ChessBase"]
[SourceQuality "1"]
[TimeControl "40/5400+30:1800+30"]

{[%evp 9,85,50,44,37,53,41,31,40,43,33,21,21,33,29,85,92,98,76,68,54,62,59,64,45,156,142,143,130,166,168,170,157,158,140,193,203,262,260,260,181,181,177,186,165,166,167,168,172,219,227,206,162,225,147,192,189,240,179,250,250,249,250,241,241,241,243,779,720,6037,1064,29978,29979,29974,29975,29980,29981,29988,29989]} 1. e4 {[%emt 0:00:03]} d5 {[%emt 0:00:10]} 2. exd5 {[%emt 0:00:06]} Qxd5 {[%emt 0:00:12]} 3. Nc3 {[%emt 0:00:06]} Qd6 {[%emt 0:00:11]} 4. d4 {[%emt 0:00:08]} Nf6 {[%emt 0:00:07]} 5. Nf3 {[%emt 0:00:11]} c6 {[%emt 0:00:12]} 6. Be3 {[%emt 0:00:21] B01: Scandinavian Defence.} Bg4 {[%emt 0:02:19] 6...Bg4 scores better than 6...Bf5.} 7. h3 {[%emt 0:00:21]} Bh5 {[%emt 0:01:19]} 8. g4 {[%emt 0:00:17] White is slightly better.} Bg6 {[%emt 0:00:35]} 9. Ne5 {[%emt 0:00:28]} Nbd7 {[%emt 0:05:28]} 10. Qe2 {[%emt 0:03:09]} Nd5 {[%emt 0:04:33] [#] aiming for ...Nxc3.} (10... Nxe5 $2 11. dxe5 Qb4 12. O-O-O $16 (12. exf6 Qxb2 13. Rb1 Qxc3+ 14. Bd2 Qxc2 $17)) 11. Nxg6 {[%emt 0:25:41] [#]} Qxg6 $146 {[%emt 0:18:57]} (11... hxg6 $11 12. Bg2 e6) ({Predecessor:} 11... hxg6 12. Ne4 Qc7 13. Bd2 N7f6 14. O-O-O Nxe4 15. Qxe4 e6 16. c4 Nf6 17. Qf3 O-O-O {1-0 (31) Packroff,H (2200)-Senzacqua,F (2159) ICCF email 2015}) 12. Nxd5 $16 {[%emt 0:01:42]} cxd5 {[%emt 0:00:08]} 13. Bg2 $36 {[%emt 0:04:18][%mdl 2048] White is really pushing.} e6 {[%emt 0:08:05]} 14. c4 {[%emt 0:00:30]} Bb4+ {[%emt 0:00:30]} 15. Kf1 {[%emt 0:00:00]} O-O {[%emt 0:10:44]} 16. cxd5 {[%emt 0:00:21] [#] Black must now prevent Qb5.} exd5 {[%emt 0:03:08] White stays focused until the end.} (16... Nb6 $14) 17. Bxd5 {[%emt 0:01:25]} Nf6 {[%emt 0:02:16]} 18. Bxb7 {[%emt 0:10:09] Hoping for Qb5. A strong pair of Bishops.} Rab8 19. Qf3 {[%emt 0:00:30]} Rfe8 {[%emt 0:06:02][%cal Oe8e3]} 20. Bf4 {[%emt 0:12:02]} Rbd8 {[%emt 0:04:44]} 21. Be5 {[%emt 0:01:21]} Qc2 {[%emt 0:04:58]} (21... Ba5 $16 22. Rd1 Re7) 22. Kg2 $18 {[%emt 0:01:19]} Qxb2 {[%emt 0:00:32]} 23. Rab1 {[%emt 0:02:22]} ({Don't play} 23. Bxf6 $6 gxf6 24. Bc6 (24. Qxf6 Qxd4 25. Qf3 Rd6 $16) 24... Re6 $16) 23... Qc3 {[%emt 0:01:23]} 24. Rhc1 {[%emt 0:00:27]} ({Much less strong is} 24. Bxf6 $6 gxf6 25. Bc6 (25. Qxf6 Qxd4 26. Qg5+ Kh8 $16) 25... Re7 26. Qxf6 Qxd4 27. Qg5+ Kf8 28. Qh6+ Kg8 29. Qg5+ Kf8 30. Qh6+ Kg8 31. Qg5+ $16) 24... Qxf3+ {[%emt 0:00:42]} 25. Bxf3 {[%emt 0:00:17]} Bd6 {[%emt 0:01:37]} 26. Rb7 {[%emt 0:04:28]} Bxe5 {[%emt 0:04:03]} 27. dxe5 {[%emt 0:00:07]} Rxe5 {[%emt 0:00:12]} 28. Rxa7 {[%emt 0:01:08]} g5 (28... h5 {might work better.} 29. Rc4 Rd7 30. Ra8+ Kh7) 29. Rcc7 {[%emt 0:03:41]} Rf8 {[%emt 0:03:22]} 30. Kg3 {[%emt 0:01:05]} h6 {[%emt 0:00:58]} (30... Ne4+ $142 31. Bxe4 Rxe4) 31. Re7 {[%emt 0:00:44]} Rc5 {[%emt 0:02:58]} 32. a4 {[%emt 0:02:25]} Rc3 {[%emt 0:00:42]} (32... Rc1 $142 33. a5 Ra1) 33. Kg2 {[%emt 0:04:04]} Rc5 {[%emt 0:00:36]} (33... Ra3 $142 34. Ra6 Kg7) 34. Rec7 {[%emt 0:07:11]} Re5 {[%emt 0:01:16]} 35. Kh2 {[%emt 0:02:24]} Ne4 {[%emt 0:01:34]} 36. Re7 {[%emt 0:01:18]} Rxe7 {[%emt 0:00:24]} 37. Rxe7 {[%emt 0:00:07]} Nxf2 {[%emt 0:00:45][%mdl 4096] Endgame KRB-KRN} (37... Nc5 38. a5 Rd8) 38. a5 {[%emt 0:02:31]} f5 {[%emt 0:01:41]} 39. a6 {[%emt 0:00:14]} (39. Bd5+ $142 Kh8 40. a6) 39... fxg4 {[%emt 0:00:12]} 40. Bd5+ {[%emt 0:00:07] White mates.} Kh8 {[%emt 0:00:05]} 41. a7 {[%emt 0:30:29]} Nxh3 {[%emt 0:30:58]} 42. Rb7 {[%emt 0:02:58]} Rf2+ {[%emt 0:02:07]} 43. Kg3 {[%emt 0:00:17] Weighted Error Value: White=0.12 (very precise) /Black=0.35} 1-0

[Event "Czech Open-GM 2022"]
[Site "Pardubice"]
[Date "2022.07.26"]
[Round "5.41"]
[White "Winter, Ondrej"]
[Black "Stauskas, Lukas"]
[Result "1/2-1/2"]
[ECO "B40"]
[WhiteElo "2168"]
[BlackElo "2348"]
[Annotator "TA"]
[PlyCount "142"]
[EventDate "2022.07.22"]
[EventType "swiss"]
[EventCountry "CZE"]
[SourceTitle "playchess.com"]
[Source "ChessBase"]
[SourceQuality "1"]
[TimeControl "40/5400+30:1800+30"]

{[%evp 22,142,-38,-41,-50,-39,-38,-46,-41,-52,-17,-34,-28,-29,-15,-12,-20,-20,-22,-37,0,0,0,0,25,-6,-5,-6,-1,-7,0,0,0,-123,-18,-12,-10,-10,-8,-7,8,3,108,0,0,0,0,0,0,0,0,0,0,-17,-22,-164,-160,-449,-29,-36,-12,-57,-57,-52,-48,-61,-60,-78,-78,-88,-51,-56,-29,-21,-20,-27,-8,-8,-8,-8,-8,-8,-8,-8,-8,-8,0,0,0,-10,-8,-8,-5,-6,0,-17,0,0,0,0,0,0,0,0,0,0,0,0,0,0,0,0,0,0,0,0,0,0,0,0,0,0,0]} 1. e4 {[%emt 0:00:03]} c5 {[%emt 0:00:09]} 2. Nf3 {[%emt 0:00:05]} e6 {[%emt 0:00:06]} 3. c3 {[%emt 0:00:08]} Nf6 {[%emt 0:00:12]} 4. e5 {[%emt 0:00:05]} Nd5 {[%emt 0:00:06]} 5. d4 {[%emt 0:00:14]} cxd4 {[%emt 0:00:11]} 6. cxd4 {[%emt 0:00:01]} d6 {[%emt 0:00:12]} 7. Bc4 {[%emt 0:09:51]} Be7 {[%emt 0:00:12]} 8. O-O {[%emt 0:00:23]} O-O {[%emt 0:00:08]} 9. Bxd5 {[%emt 0:15:48]} exd5 {[%emt 0:00:24]} 10. Qb3 {[%emt 0:01:28]} Nc6 {[%emt 0:23:22]} 11. exd6 {[%emt 0:11:03]} Qxd6 {[%emt 0:00:54]} 12. Nc3 {[%emt 0:04:21]} Rd8 {[%emt 0:02:35] [#] B22: Sicilian: 2 c3.} 13. Re1 $146 {[%emt 0:17:04]} ({Predecessor:} 13. Nb5 Qb4 14. Nc7 Qxb3 15. axb3 Rb8 16. Bf4 a6 17. Rfc1 Bd6 18. Nxd5 Be6 19. Bxd6 Rxd6 20. Nf4 Bxb3 {0-1 (43) Matushchak,N (1933)-Oganian,M (2441) Sochi 2021}) 13... Be6 {[%emt 0:10:22]} 14. Nb5 {[%emt 0:08:52]} Qd7 {[%emt 0:02:42] Black is slightly better.} 15. Bf4 {[%emt 0:02:59]} Rdc8 {[%emt 0:24:01] Inhibits Nc7.} 16. Ne5 {[%emt 0:04:03]} Qd8 {[%emt 0:00:23]} 17. Rac1 {[%emt 0:16:38]} a6 {[%emt 0:08:56]} 18. Nxc6 {[%emt 0:00:24]} bxc6 {[%emt 0:00:06]} 19. Nc3 {[%emt 0:00:14][%cal Bb5c3,Bc3e2,Be2d4][%mdl 32]} c5 {[%emt 0:00:17]} 20. Ne2 {[%emt 0:04:02]} Qa5 {[%emt 0:04:05]} 21. dxc5 {[%emt 0:00:55]} Bxc5 {[%emt 0:06:43]} 22. Be5 {[%emt 0:00:10]} Bf8 {[%emt 0:01:11][%cal Od5d4] A strong pair of Bishops.} 23. Nd4 {[%emt 0:01:06]} (23. Bc3 $5 {[%cal Rc3a5]} Qb5 24. Nd4 Qxb3 25. axb3 $11) 23... Rxc1 {[%emt 0:00:56]} 24. Rxc1 {[%emt 0:00:01]} Rc8 {[%emt 0:00:12]} 25. Rd1 {[%emt 0:00:46]} Bg4 {[%emt 0:00:53]} 26. f3 {[%emt 0:00:36]} Bd7 {[%emt 0:00:16]} 27. Rf1 {[%emt 0:01:34]} (27. Qb7 $11 Re8 28. Bg3 (28. Qxd7 Rxe5 29. Kf1 Qxa2 $17)) 27... Qc5 {[%emt 0:01:30]} (27... Rc4 $17 28. Qd3 Qxa2) 28. Rd1 $1 $11 {[%emt 0:00:57]} Bb5 {[%emt 0:01:16] [#] And now ...Be2 would win.} 29. Kh1 {[%emt 0:00:32]} Bc4 {[%emt 0:01:42]} 30. Qa4 {[%emt 0:00:25]} a5 {[%emt 0:02:53]} 31. h3 {[%emt 0:00:27]} Qb4 {[%emt 0:01:47]} (31... Qb6 $11 {keeps the balance.}) 32. Qxb4 {[%emt 0:00:31] White is more active.} ({White has to play} 32. Qd7 $16 Ra8 33. b3) 32... axb4 {[%emt 0:00:08]} 33. b3 {[%emt 0:00:08]} Ba6 {[%emt 0:00:11]} 34. Nf5 {[%emt 0:00:41]} Rd8 {[%emt 0:03:52]} 35. Ne3 {[%emt 0:00:45]} Bb7 {[%emt 0:00:32]} 36. Bd4 {[%emt 0:00:33]} Rc8 {[%emt 0:01:53]} 37. Bb2 {[%emt 0:00:34]} Ra8 {[%emt 0:01:08]} 38. Nxd5 {[%emt 0:00:28]} (38. Ra1 $1 $11) 38... Rxa2 $19 {[%emt 0:00:09]} 39. Be5 {[%emt 0:00:24]} (39. Bc1 $17) 39... f6 $2 {[%emt 0:00:52]} (39... Ra5 $19 40. Nxb4 Rxe5) 40. Bf4 $1 $11 {[%emt 0:00:33]} Rb2 {[%emt 0:02:04]} 41. Nxb4 {[%emt 0:06:33]} Bxf3 $1 {[%emt 0:03:04]} ({Of course not} 41... Bxb4 42. Rd8+ Bf8 43. Bd6 $11) 42. gxf3 {[%emt 0:02:54] [#] Strongly threatening Nd5.} Bxb4 {[%emt 0:00:07][%mdl 4096] Endgame KRB-KRB} 43. Rd8+ {[%emt 0:08:11]} Kf7 {[%emt 0:00:09]} 44. Rd7+ {[%emt 0:00:03]} Kg6 {[%emt 0:00:19]} 45. Rb7 {[%emt 0:01:00]} Bc3 {[%emt 0:09:47]} 46. Bg3 {[%emt 0:04:46] Against Rf2} h5 {[%emt 0:00:45]} 47. Kg1 {[%emt 0:04:28]} Kh6 {[%emt 0:00:44]} 48. h4 g5 49. hxg5+ {[%emt 0:01:54] The position is equal.} Kxg5 {[%emt 0:05:19]} 50. Rg7+ {[%emt 0:01:51]} Kf5 {[%emt 0:01:38]} 51. Rh7 {[%emt 0:00:21]} Kg6 {[%emt 0:00:08]} 52. Rb7 {[%emt 0:00:10]} Bd4+ {[%emt 0:01:21]} 53. Kf1 {[%emt 0:00:31]} Kf5 {[%emt 0:00:38]} 54. Rb5+ {[%emt 0:01:26]} Kg6 {[%emt 0:00:21]} 55. Rb7 {[%emt 0:01:29]} Kg5 {[%emt 0:01:37]} 56. Rg7+ {[%emt 0:00:21]} Kf5 {[%emt 0:00:26]} 57. Rh7 {[%emt 0:00:10]} Kg6 {[%emt 0:02:23]} 58. Rb7 {[%emt 0:00:03]} Be5 {[%emt 0:01:12]} 59. Bxe5 {[%emt 0:01:38]} fxe5 {[%emt 0:00:06] KR-KR} 60. Rb4 {[%emt 0:01:00]} Kg5 {[%emt 0:00:21]} 61. Re4 {[%emt 0:00:32]} Kf5 {[%emt 0:00:07]} 62. b4 {[%emt 0:00:49]} Rd2 {[%emt 0:02:21]} 63. Rh4 {[%emt 0:01:03]} Kg5 {[%emt 0:02:51]} 64. Re4 {[%emt 0:00:16]} h4 {[%emt 0:03:15]} 65. Rxe5+ {[%emt 0:00:45]} Kf4 {[%emt 0:00:07]} 66. Re1 {[%emt 0:00:07]} Rb2 {[%emt 0:00:53]} (66... h3 $5 67. Kg1 Rg2+ 68. Kh1 Rb2 $11) 67. Kg1 {[%emt 0:00:26]} Rxb4 {[%emt 0:00:23]} 68. Re4+ {[%emt 0:00:30]} Rxe4 {[%emt 0:00:05]} 69. fxe4 Kxe4 {[%emt 0:00:06]} 70. Kh2 {[%emt 0:00:06]} h3 {[%emt 0:00:05]} 71. Kxh3 {[%emt 0:00:03]} Ke5 {Weighted Error Value: White=0.21 (precise) /Black=0.25 (precise)} 1/2-1/2

[Event "Czech Open-GM 2022"]
[Site "Pardubice"]
[Date "2022.07.26"]
[Round "5.42"]
[White "Zaehringer, Daniel"]
[Black "Claridge-Hansen, William"]
[Result "1/2-1/2"]
[ECO "A57"]
[WhiteElo "2166"]
[BlackElo "2345"]
[Annotator "TA"]
[PlyCount "90"]
[EventDate "2022.07.22"]
[EventType "swiss"]
[EventCountry "CZE"]
[SourceTitle "playchess.com"]
[Source "ChessBase"]
[SourceQuality "1"]
[TimeControl "40/5400+30:1800+30"]

{[%evp 19,90,0,2,0,0,0,0,0,0,0,0,0,0,-6,0,0,0,0,0,0,0,0,0,0,0,0,0,0,0,-75,-40,-59,-59,-61,-68,-67,-70,-116,0,-8,-8,-10,0,0,0,0,0,0,0,0,0,0,0,0,0,0,0,0,0,0,0,0,0,0,0,0,0,0,0,0,0,0,0]} 1. d4 {[%emt 0:00:03]} Nf6 {[%emt 0:00:04]} 2. c4 {[%emt 0:00:06]} c5 {[%emt 0:00:20]} 3. d5 {[%emt 0:00:07]} b5 {[%emt 0:00:08]} 4. cxb5 {[%emt 0:00:07]} a6 {[%emt 0:00:06]} 5. f3 {[%emt 0:00:09]} axb5 {[%emt 0:00:36]} 6. e4 {[%emt 0:00:18]} Qa5+ {[%emt 0:01:27]} 7. Bd2 {[%emt 0:00:10]} b4 {[%emt 0:00:08]} 8. Na3 {[%emt 0:00:17]} d6 {[%emt 0:00:37]} 9. Nc4 {[%emt 0:00:34]} Qd8 {[%emt 0:00:25] 9...Qd8 was played by the boomers.} 10. a3 {[%emt 0:02:46]} e6 $1 {[%emt 0:02:23]} 11. dxe6 {[%emt 0:01:08] A57: Benko/Volga Gambit.} Bxe6 {[%emt 0:04:26]} ({Don't take} 11... d5 12. exf7+ Kxf7 13. exd5 $16 (13. Ne5+ Kg8 $16)) 12. Ne3 {[%emt 0:13:59]} d5 {[%emt 0:10:58]} 13. exd5 {[%emt 0:01:15]} Nxd5 {[%emt 0:00:48]} 14. Bb5+ {[%emt 0:05:11]} Bd7 {[%emt 0:01:25]} 15. Nxd5 {[%emt 0:05:24]} Bxb5 {[%emt 0:00:12]} 16. Bg5 $1 {[%emt 0:01:23] [#]} f6 $146 {[%emt 0:15:52]} ({Predecessor:} 16... Qxg5 17. Nc7+ Ke7 18. Nxb5 Ra6 19. Kf1 Qe5 20. Qd2 Re6 21. Nh3 g6 22. Nf4 Bh6 {1-0 (35) Alvarez Fernandez,C (2365)-Dieguez Alvarez,M (2331) Mayabeque 2018}) 17. Nxf6+ {[%emt 0:05:33]} gxf6 {[%emt 0:00:16]} 18. Qxd8+ {[%emt 0:00:08][%mdl 64] [#] Remove Defender} Kxd8 {[%emt 0:00:03]} 19. Bxf6+ {[%emt 0:00:07]} Kc7 $1 {[%emt 0:01:05]} 20. Bxh8 {[%emt 0:00:53]} Nd7 {[%emt 0:11:09] Inhibits Be5+.} 21. f4 {[%emt 0:18:29] Hoping for Nf3.} Bd6 {[%emt 0:07:38][%csl LRf4,LRh8]} 22. Be5 {[%emt 0:01:00]} Nxe5 {[%emt 0:00:29]} 23. fxe5 {[%emt 0:00:05]} Bxe5 {[%emt 0:00:14]} 24. Rc1 {[%emt 0:12:08]} (24. Rb1 $11) 24... c4 {[%emt 0:09:50][%cal Bc5c4,Bc4c3][%mdl 32]} (24... Bd4 $5 {[%cal Ra8e8]} 25. Ne2 Bxb2 26. axb4 (26. Rxc5+ Kb6 $17) 26... Bxc1 27. Nxc1 cxb4 $17) 25. axb4 {[%emt 0:09:14]} Bxb2 {[%emt 0:00:27] This bishop pair is nice.} 26. Ne2 {[%emt 0:00:46]} Bxc1 {[%emt 0:05:19]} 27. Nxc1 $15 {[%emt 0:00:06][%mdl 4096] Endgame KRB-KRN} c3 $1 {[%emt 0:00:35] Strongly threatening ...Rd8.} 28. Kf2 {[%emt 0:03:32] [#]} ({White should try} 28. h4 $1 $15) 28... Ra4 {[%emt 0:01:43]} (28... Rf8+ $1 $17 29. Kg3 Bf1) 29. Re1 {[%emt 0:05:17] The position is equal.} Rxb4 {[%emt 0:01:17]} 30. Re3 {[%emt 0:04:10]} Rb2+ {[%emt 0:00:56]} 31. Ke1 {[%emt 0:01:47]} Rc2 {[%emt 0:05:42]} 32. Ne2 {[%emt 0:06:10]} Bxe2 {[%emt 0:00:17]} 33. Rxe2 $11 {[%emt 0:00:04] KR-KR} Rc1+ {[%emt 0:00:13]} 34. Kf2 {[%emt 0:00:04]} Kd6 {[%emt 0:01:07] Threatens to win with ...Kc5.} 35. Ke3 {[%emt 0:00:17]} Kc5 {[%emt 0:00:44]} 36. Kd3 {[%emt 0:01:46]} Kb4 {[%emt 0:00:17] aiming for ...Kb3.} 37. Re7 {[%emt 0:01:01]} Rd1+ {[%emt 0:01:20]} 38. Kc2 {[%emt 0:00:07]} Rd2+ {[%emt 0:00:10]} 39. Kc1 {[%emt 0:00:05]} h5 {[%emt 0:01:26]} 40. Rb7+ {[%emt 0:01:39]} Kc4 {[%emt 0:01:28]} 41. Rc7+ {[%emt 0:32:17]} Kd3 {[%emt 0:31:26] ...Rc2+ is the strong threat.} 42. Rd7+ {[%emt 0:00:00]} Ke2 {[%emt 0:00:00]} 43. Rc7 {[%emt 0:00:00]} Rd1+ {[%emt 0:00:00]} 44. Kc2 {[%emt 0:00:00] White wants to mate with Re7+.} Rh1 {[%emt 0:00:00]} 45. h3 {[%emt 0:00:00]} Kf2 {[%emt 0:00:00] Weighted Error Value: White=0.07 (flawless) /Black=0.07 (flawless)} 1/2-1/2